bitfinex-derivatives/quotes_BTCF0:USTF0_20251103
["timestamp","ask_amount","ask_price","bid_price","bid_amount"]
[1762157401796,0.003,107680.0,107670.0,0.32981286]
[1762157401995,0.003,107680.0,107670.0,0.66061286]
[1762157401996,0.32208,107680.0,107670.0,0.66061286]
[1762157402297,0.32408,107680.0,107670.0,0.76046848]
[1762157402499,0.34472,107680.0,107670.0,0.74546848]
[1762157402693,0.34672,107680.0,107670.0,0.76246848]
[1762157402889,0.36942,107680.0,107670.0,0.64857205]
[1762157404000,0.36742,107680.0,107670.0,0.61557205]
[1762157404300,0.73122,107680.0,107670.0,0.17091643]
[1762157404693,0.37042,107680.0,107670.0,0.17091643]
[1762157404893,0.36742,107680.0,107670.0,0.18791643]
[1762157405093,0.32508,107680.0,107670.0,0.69561286]
[1762157405599,0.36942,107680.0,107670.0,0.69561286]
[1762157405801,0.36942,107680.0,107670.0,0.67861286]
[1762157406603,0.32508,107680.0,107670.0,0.77150506]
[1762157406796,0.32508,107680.0,107670.0,0.74546848]
[1762157406995,0.32608,107680.0,107670.0,0.71246848]
[1762157408102,0.005,107680.0,107670.0,0.71246848]
[1762157408302,0.32608,107680.0,107670.0,0.71246848]
[1762157409302,0.32608,107680.0,107670.0,0.80536058]
[1762157409503,0.32608,107680.0,107670.0,0.71246848]
[1762157409894,0.36742,107680.0,107670.0,0.71246848]
[1762157410403,0.36742,107680.0,107670.0,0.80536058]
[1762157410903,0.34772,107680.0,107670.0,0.80536058]
[1762157411205,0.32608,107680.0,107670.0,0.80536058]
[1762157411907,0.34772,107680.0,107670.0,0.80536058]
[1762157412096,0.02664,107680.0,107670.0,0.71246848]
[1762157412301,0.3704,107680.0,107670.0,0.71246848]
[1762157412701,0.3704,107680.0,107670.0,0.59857205]
[1762157414706,0.3704,107680.0,107670.0,0.23777205]
[1762157415398,0.3704,107680.0,107670.0,0.59857205]
[1762157415399,0.34772,107680.0,107670.0,0.59857205]
[1762157415605,0.3704,107680.0,107670.0,0.59857205]
[1762157416106,0.32608,107680.0,107670.0,0.80536048]
[1762157419213,0.005,107680.0,107670.0,1.0539696]
[1762157419398,0.32104,107690.0,107680.0,0.1516594]
[1762157419603,0.36632,107690.0,107680.0,0.6931958]
[1762157420413,0.34364,107690.0,107680.0,0.6931958]
[1762157420599,0.32404,107690.0,107680.0,0.6931958]
[1762157420905,0.4407646,107720.0,107710.0,0.05502]
[1762157421107,0.3888507,107720.0,107710.0,0.16891643]
[1762157421304,0.0678107,107720.0,107710.0,0.52971643]
[1762157421699,0.3888507,107720.0,107710.0,0.52971643]
[1762157422709,0.3908507,107720.0,107710.0,0.55071643]
[1762157422912,0.0698107,107720.0,107710.0,0.55071643]
[1762157423210,0.3908507,107720.0,107710.0,0.55071643]
[1762157427712,0.4035907,107720.0,107710.0,0.55071643]
[1762157428110,0.3908507,107720.0,107710.0,0.55071643]
[1762157428317,0.3908107,107720.0,107710.0,0.55071643]
[1762157429213,0.3908107,107720.0,107710.0,0.64357393]
[1762157429409,0.0728107,107720.0,107710.0,0.68557393]
[1762157429619,0.3485307,107720.0,107710.0,0.68557393]
[1762157430219,0.005,107720.0,107710.0,0.68557393]
[1762157432317,0.005,107720.0,107710.0,1.00657393]
[1762157438020,0.324,107730.0,107720.0,0.26416553]
[1762157438323,0.0695146,107750.0,107740.0,0.05742]
[1762157438623,0.41291056,107750.0,107740.0,0.17131643]
[1762157439026,0.42565056,107750.0,107740.0,0.17131643]
[1762157439521,0.42565056,107750.0,107740.0,0.05742]
[1762157440325,0.42865056,107750.0,107740.0,0.09942]
[1762157441325,0.42965056,107750.0,107740.0,0.12042]
[1762157444129,0.42965056,107750.0,107740.0,0.10687]
[1762157445632,0.90434699,107750.0,107740.0,0.063]
[1762157446228,0.93780947,107750.0,107740.0,0.063]
[1762157446632,0.90434699,107750.0,107740.0,0.10709]
[1762157446832,0.79045056,107750.0,107740.0,0.10709]
[1762157447230,0.79041056,107750.0,107740.0,0.23470643]
[1762157448136,0.79041056,107750.0,107740.0,0.12081]
[1762157448337,0.79041056,107750.0,107740.0,0.10709]
[1762157450128,0.82387304,107750.0,107740.0,0.10709]
[1762157451137,0.81113304,107750.0,107740.0,0.12081]
[1762157451333,0.77767056,107750.0,107740.0,0.23470643]
[1762157452138,0.77767056,107750.0,107740.0,0.12081]
[1762157452338,0.79130056,107750.0,107740.0,0.22098643]
[1762157452837,0.79130056,107750.0,107740.0,0.10709]
[1762157453633,0.82476304,107750.0,107740.0,0.10709]
[1762157454434,0.82476304,107750.0,107740.0,0.22090055]
[1762157454939,0.79977844,107750.0,107740.0,0.22090055]
[1762157455732,0.91358899,107750.0,107740.0,0.22090055]
[1762157456039,0.96378271,107750.0,107740.0,0.22090055]
[1762157456540,0.91358899,107750.0,107740.0,0.22090055]
[1762157456745,0.79977844,107750.0,107740.0,0.22090055]
[1762157457430,0.91358899,107750.0,107740.0,0.19907055]
[1762157457735,0.95978271,107750.0,107720.0,0.47461055]
[1762157457943,0.05314,107730.0,107720.0,0.53242055]
[1762157458132,0.39645596,107730.0,107720.0,0.53242055]
[1762157458329,0.38933596,107730.0,107720.0,0.6462311]
[1762157458642,0.38933596,107730.0,107720.0,0.7390797]
[1762157459034,0.02247596,107730.0,107720.0,1.08497025]
[1762157459238,0.02247596,107730.0,107720.0,0.99912165]
[1762157459433,0.02247596,107730.0,107720.0,1.0669197]
[1762157459939,0.02247596,107730.0,107720.0,1.11704525]
[1762157460541,0.02247596,107730.0,107720.0,1.2308558]
[1762157460742,0.02247596,107730.0,107720.0,1.2468558]
[1762157461445,0.03747596,107730.0,107720.0,1.2238558]
[1762157461833,0.015,107730.0,107720.0,1.2238558]
[1762157462038,0.06102,107730.0,107720.0,0.69635665]
[1762157462241,0.06828659,107730.0,107720.0,0.71435665]
[1762157462843,0.06828659,107730.0,107720.0,0.80720525]
[1762157463039,0.02226659,107730.0,107720.0,0.80720525]
[1762157463342,0.06828659,107730.0,107720.0,0.80720525]
[1762157463545,0.06828659,107730.0,107720.0,0.81020525]
[1762157463947,0.06828659,107730.0,107720.0,0.71735665]
[1762157464245,0.06828659,107730.0,107720.0,0.81320525]
[1762157464945,0.06828659,107730.0,107720.0,0.78920525]
[1762157465148,0.06828659,107730.0,107720.0,0.81220525]
[1762157465442,0.06828659,107730.0,107720.0,0.83020525]
[1762157465646,0.04529659,107730.0,107720.0,0.83020525]
[1762157466041,0.02226659,107730.0,107720.0,0.83020525]
[1762157466950,0.36686,107740.0,107730.0,0.05781]
[1762157467146,0.36686,107740.0,107730.0,0.35227401]
[1762157467748,0.36686,107740.0,107730.0,0.23846346]
[1762157468250,0.36786,107740.0,107730.0,0.30046346]
[1762157469150,0.36786,107740.0,107730.0,0.23362055]
[1762157469748,0.04702,107740.0,107730.0,0.23362055]
[1762157470046,0.36686,107740.0,107730.0,0.19062055]
[1762157470249,0.36786,107740.0,107730.0,0.23362055]
[1762157472849,0.3732,107740.0,107730.0,0.23362055]
[1762157473252,0.36786,107740.0,107730.0,0.23362055]
[1762157474951,0.36786,107740.0,107730.0,0.32646065]
[1762157475147,0.36786,107740.0,107730.0,0.37646132]
[1762157475346,0.36786,107740.0,107730.0,0.32646065]
[1762157475751,0.36786,107740.0,107730.0,0.4402712]
[1762157476252,0.36786,107740.0,107730.0,0.41427401]
[1762157476445,0.36686,107740.0,107730.0,0.37227401]
[1762157476642,0.36686,107740.0,107730.0,0.25846346]
[1762157477162,0.36686,107740.0,107730.0,0.24446346]
[1762157477548,0.36686,107740.0,107730.0,0.17262055]
[1762157477749,0.36686,107740.0,107730.0,0.17562055]
[1762157479456,0.36686,107740.0,107730.0,0.2257654]
[1762157479457,0.37309,107740.0,107730.0,0.2257654]
[1762157480152,0.36686,107740.0,107730.0,0.2257654]
[1762157480453,0.36686,107740.0,107730.0,0.2587654]
[1762157480649,0.36686,107740.0,107730.0,0.3486055]
[1762157480848,0.36686,107740.0,107730.0,0.3676055]
[1762157481052,0.36686,107740.0,107730.0,0.2747654]
[1762157481255,0.36686,107740.0,107730.0,0.3676055]
[1762157481558,0.36686,107740.0,107730.0,0.2747654]
[1762157482457,0.36686,107740.0,107730.0,0.3676055]
[1762157482859,0.36686,107740.0,107730.0,0.2727654]
[1762157483167,0.3796,107740.0,107730.0,0.2727654]
[1762157483852,0.36686,107740.0,107730.0,0.2727654]
[1762157484051,0.36686,107740.0,107730.0,0.3656055]
[1762157484256,0.36686,107740.0,107730.0,0.2727654]
[1762157486660,0.36686,107740.0,107730.0,0.2407654]
[1762157486847,0.36686,107740.0,107730.0,0.2537654]
[1762157487158,0.36686,107740.0,107730.0,0.2747654]
[1762157488161,0.36686,107740.0,107730.0,0.2727654]
[1762157489362,0.36686,107740.0,107730.0,0.2697654]
[1762157489757,0.36686,107740.0,107730.0,0.15495485]
[1762157489966,0.37244,107740.0,107730.0,0.14107485]
[1762157490159,0.9608611,107740.0,107730.0,0.09698485]
[1762157490361,0.05612,107730.0,107720.0,0.04998485]
[1762157490555,0.53073055,107730.0,107720.0,0.04998485]
[1762157491063,0.05612,107720.0,107710.0,0.5682454]
[1762157491257,0.37696,107720.0,107710.0,0.5682454]
[1762157493664,0.37696,107720.0,107710.0,0.5972454]
[1762157493865,0.37696,107720.0,107710.0,0.6152454]
[1762157495169,0.37696,107720.0,107710.0,0.53626055]
[1762157495364,0.37696,107720.0,107710.0,0.56526055]
[1762157495668,0.37696,107720.0,107710.0,0.64508346]
[1762157495863,0.04273,107730.0,107720.0,0.1272385]
[1762157496064,0.41716,107750.0,107740.0,0.05663]
[1762157496267,0.738,107750.0,107740.0,0.33428131]
[1762157497470,0.738,107750.0,107740.0,0.34928131]
[1762157497963,0.72437,107750.0,107740.0,0.37228131]
[1762157498266,0.40353,107750.0,107740.0,0.37228131]
[1762157498464,0.72437,107760.0,107750.0,0.05663]
[1762157498668,0.72437,107760.0,107750.0,0.33428369]
[1762157499761,0.36357,107760.0,107750.0,0.3770736]
[1762157499965,0.34197,107760.0,107750.0,0.80471651]
[1762157500267,0.32084,107760.0,107750.0,0.80471651]
[1762157500461,0.34197,107760.0,107750.0,0.82971651]
[1762157500763,0.36357,107760.0,107750.0,0.75489401]
[1762157501170,0.36357,107760.0,107750.0,0.72989401]
[1762157501462,0.36357,107760.0,107750.0,0.75689401]
[1762157501463,0.36965,107760.0,107750.0,0.75689401]
[1762157502164,0.04225,107760.0,107750.0,0.75689401]
[1762157502757,0.02113,107760.0,107750.0,0.84971651]
[1762157502961,0.3681,107770.0,107760.0,0.05783]
[1762157503160,0.3681,107770.0,107760.0,0.3354307]
[1762157503461,0.37486,107770.0,107760.0,0.3354307]
[1762157503857,0.48867055,107770.0,107760.0,0.20809015]
[1762157504071,0.48867055,107770.0,107760.0,0.16049055]
[1762157504367,0.48867055,107770.0,107760.0,0.20011055]
[1762157505269,0.37486,107770.0,107760.0,0.20011055]
[1762157506969,0.73566,107770.0,107760.0,0.20011055]
[1762157508081,0.84947055,107770.0,107760.0,0.15581055]
[1762157508368,0.73566,107770.0,107760.0,0.20011055]
[1762157508569,0.84947055,107770.0,107760.0,0.20011055]
[1762157508963,0.73566,107770.0,107760.0,0.20011055]
[1762157510272,0.84947055,107770.0,107760.0,0.19711055]
[1762157510968,0.84947055,107770.0,107760.0,0.18011055]
[1762157511166,0.84947055,107770.0,107760.0,0.17311055]
[1762157511366,0.84947055,107770.0,107760.0,0.19811055]
[1762157513470,0.84947055,107770.0,107760.0,0.20011055]
[1762157514378,0.73566,107770.0,107760.0,0.0863]
[1762157515777,0.73566,107770.0,107760.0,0.20007273]
[1762157516578,0.73566,107770.0,107760.0,0.0863]
[1762157516873,0.73566,107770.0,107760.0,0.20007273]
[1762157517477,0.73566,107770.0,107760.0,0.17507273]
[1762157517778,0.73566,107770.0,107760.0,0.20007273]
[1762157519675,0.73566,107770.0,107760.0,0.0863]
[1762157519978,0.73566,107770.0,107760.0,0.20007273]
[1762157521980,0.73566,107770.0,107760.0,0.15577273]
[1762157522191,0.73566,107770.0,107760.0,0.20007273]
[1762157523888,0.4081,107770.0,107760.0,0.21360273]
[1762157524091,0.72886,107770.0,107760.0,0.19660273]
[1762157524395,0.72886,107770.0,107760.0,0.26358233]
[1762157524896,0.72886,107770.0,107760.0,0.37735506]
[1762157525295,0.72886,107770.0,107760.0,0.33535506]
[1762157525487,0.72886,107770.0,107760.0,0.37735506]
[1762157525796,0.4081,107770.0,107760.0,0.37735506]
[1762157525997,0.36806,107770.0,107760.0,0.73815506]
[1762157526203,0.36806,107770.0,107760.0,0.68817546]
[1762157526896,0.36806,107770.0,107760.0,0.75501837]
[1762157528597,0.36806,107770.0,107760.0,0.84783297]
[1762157528800,0.36806,107770.0,107760.0,0.75501837]
[1762157529897,0.36806,107770.0,107760.0,0.68817546]
[1762157530697,0.36806,107770.0,107760.0,0.66317546]
[1762157530902,0.36806,107770.0,107760.0,0.64617546]
[1762157531396,0.36806,107770.0,107760.0,0.73899006]
[1762157531602,0.36806,107770.0,107760.0,0.64817546]
[1762157531999,0.32376,107770.0,107760.0,0.74099006]
[1762157532302,0.32376,107770.0,107760.0,0.64817546]
[1762157532494,0.36859,107770.0,107760.0,0.64817546]
[1762157534205,0.04783,107770.0,107760.0,0.64817546]
[1762157534503,0.04783,107770.0,107760.0,0.17360273]
[1762157534896,0.04783,107770.0,107760.0,0.53440273]
[1762157535103,0.06959405,107770.0,107760.0,0.22364996]
[1762157535592,0.06959405,107770.0,107760.0,0.25264996]
[1762157535792,0.06959405,107770.0,107760.0,0.27264996]
[1762157539511,0.08277405,107770.0,107760.0,0.27264996]
[1762157539801,0.06959405,107770.0,107760.0,0.27264996]
[1762157540698,0.43039405,107770.0,107760.0,0.27264996]
[1762157541608,0.43039405,107770.0,107760.0,0.28944564]
[1762157541609,0.40863,107770.0,107760.0,0.28944564]
[1762157545403,0.40863,107770.0,107760.0,0.40321837]
[1762157545805,0.02544,107770.0,107760.0,0.49603297]
[1762157546506,0.003,107770.0,107760.0,0.49603297]
[1762157546701,0.003,107770.0,107760.0,0.85683297]
[1762157547205,0.04789,107770.0,107760.0,0.53647291]
[1762157547404,0.04789,107770.0,107760.0,0.76401837]
[1762157548311,0.04789,107770.0,107760.0,0.40321837]
[1762157549518,0.04789,107770.0,107760.0,0.28944564]
[1762157551217,0.04789,107770.0,107760.0,0.17567291]
[1762157551417,0.04789,107770.0,107760.0,0.28944564]
[1762157553722,0.04789,107770.0,107760.0,0.40321837]
[1762157554426,0.04789,107770.0,107760.0,0.85683307]
[1762157554622,0.003,107770.0,107760.0,0.85683307]
[1762157554823,0.32368,107770.0,107760.0,0.85683307]
[1762157556120,0.34639,107770.0,107760.0,0.85683307]
[1762157556625,0.32368,107770.0,107760.0,0.85683307]
[1762157557120,0.34639,107770.0,107760.0,0.85683307]
[1762157557926,0.32368,107770.0,107760.0,0.8732549]
[1762157559227,0.32368,107770.0,107760.0,0.78999016]
[1762157560830,0.04789,107770.0,107760.0,0.78999016]
[1762157561218,0.04789,107770.0,107760.0,0.8732549]
[1762157561829,0.003,107770.0,107760.0,0.8732549]
[1762157563727,0.003,107770.0,107760.0,0.7804402]
[1762157563931,0.04687,107770.0,107760.0,0.7804402]
[1762157564728,0.04687,107770.0,107760.0,0.58340273]
[1762157565033,0.04687,107770.0,107760.0,0.66666747]
[1762157565326,0.04687,107770.0,107760.0,0.7804402]
[1762157565827,0.53426273,107770.0,107760.0,0.11773369]
[1762157566021,0.76626273,107770.0,107760.0,0.11773369]
[1762157566224,0.53426273,107770.0,107760.0,0.11773369]
[1762157566531,0.42049,107770.0,107760.0,0.051]
[1762157566832,0.42049,107770.0,107760.0,0.11773369]
[1762157566833,0.53426273,107770.0,107760.0,0.11773369]
[1762157567233,0.53426273,107770.0,107760.0,0.11173369]
[1762157567421,0.04387,107750.0,107740.0,0.06673369]
[1762157567626,0.73026,107750.0,107740.0,0.12657474]
[1762157567834,0.72531,107750.0,107740.0,0.14013474]
[1762157568334,0.72531,107750.0,107740.0,0.25390747]
[1762157568737,0.72531,107750.0,107740.0,0.17064273]
[1762157568935,0.72531,107750.0,107740.0,0.18964273]
[1762157569333,0.72531,107750.0,107740.0,0.25638189]
[1762157570031,0.72531,107750.0,107740.0,0.27338189]
[1762157576141,0.72531,107750.0,107740.0,0.15960916]
[1762157576345,0.72531,107750.0,107740.0,0.38718964]
[1762157576940,0.72531,107750.0,107740.0,0.32045048]
[1762157578036,0.72531,107750.0,107740.0,0.20666024]
[1762157578844,0.83910024,107750.0,107740.0,0.14600213]
[1762157579143,0.83910024,107750.0,107740.0,0.25979237]
[1762157580238,0.72531,107750.0,107740.0,0.23735237]
[1762157580544,0.72631,107750.0,107740.0,0.37814261]
[1762157582140,0.84010024,107750.0,107740.0,0.09369213]
[1762157582538,1.07214024,107750.0,107740.0,0.09369213]
[1762157582750,1.14206048,107750.0,107730.0,0.04525213]
[1762157583045,0.58838048,107740.0,107730.0,0.04525213]
[1762157583736,0.58838048,107740.0,107730.0,0.06729213]
[1762157584133,0.47459024,107740.0,107730.0,0.08856213]
[1762157584338,0.47459024,107740.0,107730.0,0.10256213]
[1762157584849,0.47559024,107740.0,107730.0,0.11156213]
[1762157585046,0.3618,107740.0,107730.0,0.11156213]
[1762157585234,0.47559024,107740.0,107730.0,0.11156213]
[1762157585439,0.47459024,107740.0,107730.0,0.10256213]
[1762157585639,0.47559024,107740.0,107730.0,0.11156213]
[1762157586245,0.47659024,107740.0,107730.0,0.09756213]
[1762157586947,0.47559024,107740.0,107730.0,0.09756213]
[1762157587146,0.59038048,107740.0,107730.0,0.09756213]
[1762157587844,0.3628,107740.0,107730.0,0.09756213]
[1762157588041,0.59038048,107740.0,107730.0,0.09756213]
[1762157588752,0.82242048,107740.0,107730.0,0.009]
[1762157590049,0.83042048,107740.0,107730.0,0.009]
[1762157590248,0.83042048,107740.0,107730.0,0.02256]
[1762157590945,0.82942048,107740.0,107730.0,0.01356]
[1762157591147,0.83042048,107740.0,107730.0,0.01656]
[1762157591742,0.83042048,107740.0,107730.0,0.01356]
[1762157592051,0.83042048,107740.0,107730.0,0.01856]
[1762157592452,0.82142048,107740.0,107730.0,0.01856]
[1762157592641,0.82142048,107740.0,107730.0,0.01956]
[1762157593243,0.82142048,107740.0,107730.0,0.005]
[1762157593441,0.82342048,107740.0,107730.0,0.01889]
[1762157593743,0.97772048,107740.0,107730.0,0.01889]
[1762157593945,0.97772048,107740.0,107730.0,0.005]
[1762157594344,0.74568048,107740.0,107730.0,0.01789]
[1762157595143,0.97772048,107740.0,107730.0,0.01789]
[1762157595345,0.74568048,107740.0,107730.0,0.06265]
[1762157595546,0.47759024,107740.0,107730.0,0.17644024]
[1762157595744,0.3638,107740.0,107730.0,0.17644024]
[1762157595948,0.3638,107740.0,107730.0,0.24308539]
[1762157596141,0.32372,107740.0,107730.0,0.24308539]
[1762157596345,0.68452,107740.0,107730.0,0.24308539]
[1762157596552,0.32372,107740.0,107730.0,0.24308539]
[1762157597453,0.32372,107740.0,107730.0,0.12929515]
[1762157597654,0.68452,107740.0,107730.0,0.24308539]
[1762157598354,0.68452,107740.0,107730.0,0.17644024]
[1762157598555,0.68452,107740.0,107730.0,0.24314144]
[1762157598750,0.91210048,107740.0,107730.0,0.1071512]
[1762157599057,0.91210048,107740.0,107730.0,0.0845912]
[1762157599650,0.47759024,107740.0,107730.0,0.1293512]
[1762157599847,0.79831024,107740.0,107730.0,0.24314144]
[1762157600155,0.47559024,107740.0,107730.0,0.24314144]
[1762157600354,0.79531024,107740.0,107730.0,0.24014144]
[1762157600556,0.79631024,107740.0,107730.0,0.24414144]
[1762157601048,0.47559024,107740.0,107730.0,0.24414144]
[1762157601253,0.3618,107740.0,107730.0,0.24714144]
[1762157601643,0.68252,107740.0,107730.0,0.24714144]
[1762157601846,0.68252,107740.0,107730.0,0.24614144]
[1762157602357,0.68252,107740.0,107730.0,0.24514144]
[1762157602550,0.68252,107740.0,107730.0,0.25114144]
[1762157602856,0.3618,107740.0,107730.0,0.25114144]
[1762157603057,0.68252,107740.0,107730.0,0.25114144]
[1762157603259,0.68252,107740.0,107730.0,0.24814144]
[1762157603957,0.68252,107740.0,107730.0,0.24914144]
[1762157604461,0.68152,107740.0,107730.0,0.24214144]
[1762157604654,0.68252,107740.0,107730.0,0.24914144]
[1762157605048,0.70585086,107740.0,107730.0,0.18544024]
[1762157605750,0.68252,107740.0,107730.0,0.17944024]
[1762157605953,0.68252,107740.0,107730.0,0.18544024]
[1762157606557,0.68252,107740.0,107730.0,0.17944024]
[1762157606753,0.68252,107740.0,107730.0,0.18844024]
[1762157607862,0.68252,107740.0,107730.0,0.18644024]
[1762157608265,0.38510034,107740.0,107730.0,0.29123048]
[1762157608466,0.34502034,107740.0,107730.0,0.29423048]
[1762157608674,0.34502034,107740.0,107730.0,0.18244024]
[1762157608867,0.32172,107740.0,107730.0,0.18244024]
[1762157609370,0.68252,107740.0,107730.0,0.18244024]
[1762157609961,0.32172,107740.0,107730.0,0.17944024]
[1762157610166,0.32172,107740.0,107730.0,0.18544024]
[1762157610569,0.68252,107740.0,107730.0,0.18544024]
[1762157610871,0.32172,107740.0,107730.0,0.18544024]
[1762157611170,0.32172,107740.0,107730.0,0.18344024]
[1762157611672,0.32072,107740.0,107730.0,0.17244024]
[1762157611866,0.32072,107740.0,107730.0,0.17644024]
[1762157612171,0.32072,107740.0,107730.0,0.53724024]
[1762157612373,0.32072,107740.0,107730.0,0.17344024]
[1762157612572,0.32172,107740.0,107730.0,0.17844024]
[1762157612772,0.32172,107740.0,107730.0,0.18044024]
[1762157614665,0.68152,107740.0,107730.0,0.17544024]
[1762157615673,0.68152,107740.0,107730.0,0.17844024]
[1762157615874,0.68252,107740.0,107730.0,0.18044024]
[1762157616976,0.79631024,107740.0,107730.0,0.06665]
[1762157617167,0.79631024,107740.0,107730.0,0.18044024]
[1762157617872,0.68252,107740.0,107730.0,0.18044024]
[1762157618173,0.68152,107740.0,107730.0,0.17644024]
[1762157618369,0.32072,107740.0,107730.0,0.17644024]
[1762157618570,0.32265614,107740.0,107730.0,0.17644024]
[1762157619773,0.68345614,107740.0,107730.0,0.17644024]
[1762157620172,0.68345614,107740.0,107730.0,0.06265]
[1762157620374,0.68345614,107740.0,107730.0,0.17644024]
[1762157620776,0.79724638,107740.0,107730.0,0.17644024]
[1762157623174,0.79724638,107740.0,107730.0,0.06265]
[1762157623474,0.79724638,107740.0,107730.0,0.17644024]
[1762157624479,0.68345614,107740.0,107730.0,0.17644024]
[1762157624669,0.79724638,107740.0,107730.0,0.17644024]
[1762157625680,0.82045582,107740.0,107730.0,0.17644024]
[1762157627178,0.82045582,107740.0,107730.0,0.06265]
[1762157627378,0.93424606,107740.0,107730.0,0.06265]
[1762157628172,0.82045582,107740.0,107730.0,0.06265]
[1762157628378,0.82045582,107740.0,107730.0,0.17644024]
[1762157628578,0.82045582,107740.0,107730.0,0.06265]
[1762157635284,0.82045582,107740.0,107730.0,0.17644024]
[1762157635784,0.82045582,107740.0,107730.0,0.06265]
[1762157638585,0.70666558,107740.0,107730.0,0.06265]
[1762157641585,0.82050765,107740.0,107730.0,0.06265]
[1762157647490,0.81750765,107740.0,107730.0,0.06265]
[1762157647893,0.84251432,107740.0,107730.0,0.06265]
[1762157649185,0.84251432,107740.0,107730.0,0.01789]
[1762157649384,0.84251432,107740.0,107730.0,0.004]
[1762157649385,1.04954765,107740.0,107730.0,0.004]
[1762157649584,0.84251432,107740.0,107730.0,0.004]
[1762157650679,0.87587318,107740.0,107730.0,0.004]
[1762157650883,0.76203111,107740.0,107730.0,0.004]
[1762157651084,0.76203111,107740.0,107730.0,0.01774]
[1762157651085,0.87587318,107740.0,107730.0,0.01774]
[1762157651290,0.84251432,107740.0,107730.0,0.01774]
[1762157652292,0.84251432,107740.0,107730.0,0.03944]
[1762157652492,0.84251432,107740.0,107730.0,0.01774]
[1762157653190,0.84057818,107740.0,107730.0,0.01774]
[1762157653394,0.84378875,107740.0,107730.0,0.01774]
[1762157655898,0.72994668,107740.0,107730.0,0.0634]
[1762157656097,0.84378875,107740.0,107730.0,0.0634]
[1762157656595,0.84378875,107740.0,107730.0,0.04024]
[1762157656797,0.84378875,107740.0,107730.0,0.004]
[1762157657194,0.87714761,107740.0,107730.0,0.01707]
[1762157659300,1.03144761,107740.0,107730.0,0.01707]
[1762157661304,1.37732968,107740.0,107730.0,0.004]
[1762157661502,1.35232301,107740.0,107720.0,0.01368041]
[1762157661698,0.61355194,107730.0,107720.0,0.01368041]
[1762157661896,0.63676138,107730.0,107720.0,0.00012041]
[1762157662397,0.63997195,107730.0,107720.0,0.00012041]
[1762157662702,0.64097195,107730.0,107720.0,0.00412041]
[1762157663404,0.87305195,107730.0,107720.0,0.00412041]
[1762157665100,0.9313813,107730.0,107710.0,0.01356]
[1762157665401,0.82358506,107720.0,107710.0,0.01356]
[1762157665704,0.8467945,107720.0,107710.0,0.01356]
[1762157666003,0.84690134,107720.0,107710.0,0.01356]
[1762157666996,0.84690134,107720.0,107710.0,0.05788]
[1762157667296,0.84790134,107720.0,107710.0,0.05988]
[1762157668009,0.38832685,107720.0,107710.0,0.05988]
[1762157668307,0.38832685,107720.0,107710.0,0.17372207]
[1762157668308,0.70900685,107720.0,107710.0,0.17372207]
[1762157669210,0.70900685,107720.0,107710.0,0.05988]
[1762157674113,0.82284892,107720.0,107710.0,0.03806]
[1762157674417,0.82284892,107720.0,107700.0,0.01356]
[1762157674418,1.2675402,107720.0,107700.0,0.01356]
[1762157674611,0.61363629,107710.0,107690.0,0.01307]
[1762157674808,0.90916414,107700.0,107690.0,0.01307]
[1762157675119,0.93694135,107700.0,107680.0,0.03568]
[1762157675309,0.47414207,107690.0,107680.0,0.03568]
[1762157675610,0.47422367,107690.0,107670.0,0.01359]
[1762157675804,0.90916414,107680.0,107660.0,0.03976506]
[1762157676006,0.59304003,107670.0,107660.0,0.03976506]
[1762157676303,2.09304003,107670.0,107660.0,0.03976506]
[1762157676513,1.97919796,107670.0,107660.0,0.03976506]
[1762157676714,1.97919796,107670.0,107660.0,0.06158506]
[1762157676912,0.47919796,107670.0,107660.0,0.06158506]
[1762157678117,0.47919796,107670.0,107660.0,0.06258506]
[1762157678519,0.47919796,107670.0,107660.0,0.06158506]
[1762157678820,0.48019796,107670.0,107660.0,0.06258506]
[1762157680920,0.47919796,107670.0,107660.0,0.06158506]
[1762157681219,0.48019796,107670.0,107660.0,0.06258506]
[1762157682014,0.36635589,107670.0,107660.0,0.06258506]
[1762157682319,0.48019796,107670.0,107660.0,0.06258506]
[1762157682515,0.36635589,107670.0,107660.0,0.06258506]
[1762157682717,0.68711589,107670.0,107660.0,0.06258506]
[1762157683517,0.80095796,107670.0,107660.0,0.06258506]
[1762157685016,0.91480003,107670.0,107660.0,0.01815506]
[1762157686121,0.80095796,107670.0,107660.0,0.06199506]
[1762157686719,0.68711589,107670.0,107660.0,0.06199506]
[1762157686919,0.80095796,107670.0,107660.0,0.06199506]
[1762157692039,0.48019796,107670.0,107660.0,0.06199506]
[1762157692331,0.80099796,107670.0,107660.0,0.06199506]
[1762157696437,0.86697096,107670.0,107660.0,0.06199506]
[1762157698441,0.86713521,107670.0,107660.0,0.06199506]
[1762157702645,0.75312889,107670.0,107660.0,0.06199506]
[1762157702943,0.86713521,107670.0,107660.0,0.06199506]
[1762157704332,1.00465195,107670.0,107660.0,0.00456506]
[1762157704532,1.37584002,107670.0,107640.0,0.0802912]
[1762157704742,0.94961264,107650.0,107640.0,0.0802912]
[1762157704941,1.27041264,107650.0,107640.0,0.0802912]
[1762157705151,1.274898,107650.0,107640.0,0.0802912]
[1762157705443,1.29890162,107650.0,107640.0,0.01359]
[1762157705744,1.29901175,107650.0,107640.0,0.001]
[1762157707141,1.29901175,107650.0,107630.0,0.1028012]
[1762157707338,0.58881264,107640.0,107630.0,0.01359]
[1762157707539,0.70291212,107640.0,107630.0,0.01359]
[1762157707838,0.70291212,107640.0,107620.0,0.0166562]
[1762157707839,0.95952674,107640.0,107620.0,0.0166562]
[1762157708034,0.91418315,107630.0,107620.0,0.0166562]
[1762157708239,1.62846432,107630.0,107610.0,0.0807912]
[1762157708443,0.58891882,107620.0,107610.0,0.01409]
[1762157708839,0.82123882,107620.0,107610.0,0.01409]
[1762157709143,0.82572418,107620.0,107610.0,0.0005]
[1762157709347,0.9397305,107620.0,107610.0,0.0005]
[1762157709542,0.82572418,107620.0,107610.0,0.0005]
[1762157709739,0.9397305,107620.0,107610.0,0.0005]
[1762157710545,0.9397305,107620.0,107610.0,0.0015]
[1762157710844,0.9417305,107620.0,107610.0,0.0015]
[1762157711045,0.9417305,107620.0,107610.0,0.01509]
[1762157711248,0.9447305,107620.0,107610.0,0.01509]
[1762157711640,0.94462432,107620.0,107610.0,0.0015]
[1762157712041,0.83071541,107620.0,107610.0,0.05981]
[1762157712248,0.91923541,107620.0,107610.0,0.05981]
[1762157712440,0.98520841,107620.0,107610.0,0.05981]
[1762157713343,0.98520841,107620.0,107610.0,0.03663]
[1762157713541,0.98520841,107620.0,107610.0,0.01486]